{"text_format":"3","workbook":"xlsx","n_sheets":14,"sheets":["ipuçları","özet","oca","şub","mar","nis","may","haz","tem","ağu","eyl","eki","kas","ara"],"not_rendered":{"charts":1,"defined_names":27},"read":"whole","date_system":"1900"}

{"sheet":"ipuçları","index":0,"n_rows":18,"n_cols":1,"rows_kept":18}
["ŞABLON İPUÇLARI"]
["Gider Eğilimleri özet sayfası ve aylık gider ayrıntıları arasında geçiş yapmanın kolay bir yolu var mı?"]
["Belirli bir ayın giderlerine hızla gitmek için, B2 hücresindeki Oca gezinti bağlantısı gibi grafiğin üzerindeki ilişkili gezinti bağlantısına tıklayın. Daha sonra Gider Eğilimleri çalışma sayfasına dönmek için D1 hücresindeki Özet gezinti bağlantısına tıklayın. "]
["Bu ipuçları çalışma sayfasına dönmek için özet çalışma sayfasında N2 hücresini seçin. Tüm ay çalışma sayfalarından E1 hücresini seçin."]
["Gider Özetine yeni bir Gider türünü veya yeni aylık giderleri nasıl ekleyebilirim?"]
["Grafiğin altındaki Gider Özeti ve her ayın gider ayrıntısı Excel tablolarıdır. Excel tablosuna yeni satır eklemek için aşağıdakilerden birini yapın:"]
[{"$f":"ROW(A1)&\". Tabloda bir toplam satırı bulunmuyorsa, tablonun en altına yazmaya başlayın; böylece Enter veya Sekme tuşuna bastığınızda tablo otomatik olarak genişleyecektir.\"","v":"1. Tabloda bir toplam satırı bulunmuyorsa, tablonun en altına yazmaya başlayın; böylece Enter veya Sekme tuşuna bastığınızda tablo otomatik olarak genişleyecektir."}]
[{"$f":"ROW(A2)&\". Hücre işaretçinizi, son giderin toplamının yer aldığı hücre gibi Toplam satırının üzerinde bulunan en son hücreye getirin ve sonra Sekme tuşuna basın.\"","v":"2. Hücre işaretçinizi, son giderin toplamının yer aldığı hücre gibi Toplam satırının üzerinde bulunan en son hücreye getirin ve sonra Sekme tuşuna basın."}]
[{"$f":"ROW(A3)&\". Tabloya sağ tıklayın ve açılan menüde Ekle’ye gelin, sonra Yukarıdaki Tablo Satırları veya Aşağıdaki Tablo Satırları’na tıklayın.\"","v":"3. Tabloya sağ tıklayın ve açılan menüde Ekle’ye gelin, sonra Yukarıdaki Tablo Satırları veya Aşağıdaki Tablo Satırları’na tıklayın."}]
[{"$f":"ROW(A4)&\". Tablonun sağ alt köşesinde, farenizi boyutlandırma tutamacına getirin ve kullanılabilir tablo satırlarının sayısını artırmak için aşağı sürükleyin.\"","v":"4. Tablonun sağ alt köşesinde, farenizi boyutlandırma tutamacına getirin ve kullanılabilir tablo satırlarının sayısını artırmak için aşağı sürükleyin."}]
["Özet çalışma sayfasındaki Gider Özeti tablosunun Giderler sütununa gider girin."]
["Giderin geçerli olduğu ayın çalışma sayfasına her bir gider türünün gider tutarını ekleyin."]
["örneğin: “Gider 1” Ocak Haziran ayları arasında ve Aralık ayında gerçekleşir. "]
[{"$f":"ROW(A1)&\". Gider 1; özet çalışma sayfasında, GiderÖzeti tablosunda Gider’in altına girilir (gider türünün başlığı olarak).\"","v":"1. Gider 1; özet çalışma sayfasında, GiderÖzeti tablosunda Gider’in altına girilir (gider türünün başlığı olarak)."}]
[{"$f":"ROW(A2)&\". Giderin yer aldığı her ay için, ilgili ayın çalışma sayfasında giderin tutarını girin.\"","v":"2. Giderin yer aldığı her ay için, ilgili ayın çalışma sayfasında giderin tutarını girin."}]
[{"$f":"ROW(A3)&\". GiderÖzeti çalışma sayfasındaki gider türü, her ayın çalışma sayfasında Kategori sütunu için bir kategori listesi oluşturur.\"","v":"3. GiderÖzeti çalışma sayfasındaki gider türü, her ayın çalışma sayfasında Kategori sütunu için bir kategori listesi oluşturur."}]
[{"$f":"ROW(A4)&\". Girilen gider tutarı için ilgili gider türünü seçmek üzere Kategori sütunundaki kategori listesini kullanın\"","v":"4. Girilen gider tutarı için ilgili gider türünü seçmek üzere Kategori sütunundaki kategori listesini kullanın"}]
[{"$f":"ROW(A5)&\". Herhangi bir ay için yeni giderler eklemek üzere, özet çalışma sayfasındaki GiderÖzeti tablosuna yeni bir satır ekleyin, sonra uygulandığı aya ait çalışma sayfasında ilgili gider ayrıntılarını girin.\"","v":"5. Herhangi bir ay için yeni giderler eklemek üzere, özet çalışma sayfasındaki GiderÖzeti tablosuna yeni bir satır ekleyin, sonra uygulandığı aya ait çalışma sayfasında ilgili gider ayrıntılarını girin."}]

{"sheet":"özet","index":1,"n_rows":10,"n_cols":15,"rows_kept":10}
["GİDER EĞİLİMLERİ"]
[null,"Oca","Şub","Mar","Nis","May","Haz","Tem","Ağu","Eyl","Eki","Kas","Ara","İpuçları"]
[]
["Giderler","Oca","Şub","Mar","Nis","May","Haz","Tem","Ağu","Eyl","Eki","Kas","Ara","Toplam","Eğilim"]
["Gider 1",{"$f":"SUMIFS(OcaGid[Tutar],OcaGid[Kategori],GiderÖzeti[Giderler])","v":{"v":33,"d":"33.00"}},{"$f":"SUMIFS(ŞuGid[Tutar],ŞuGid[Kategori],GiderÖzeti[Giderler])","v":{"v":375,"d":"375.00"}},{"$f":"SUMIFS(MarGid[Tutar],MarGid[Kategori],GiderÖzeti[Giderler])","v":{"v":33,"d":"33.00"}},{"$f":"SUMIFS(NisGid[Tutar],NisGid[Kategori],GiderÖzeti[Giderler])","v":{"v":45,"d":"45.00"}},{"$f":"SUMIFS(MayGid[Tutar],MayGid[Kategori],GiderÖzeti[Giderler])","v":{"v":375,"d":"375.00"}},{"$f":"SUMIFS(HazGid[Tutar],HazGid[Kategori],GiderÖzeti[Giderler])","v":{"v":201,"d":"201.00"}},{"$f":"SUMIFS(TemGid[Tutar],TemGid[Kategori],GiderÖzeti[Giderler])","v":{"v":0,"d":"0.00"}},{"$f":"SUMIFS(AğuGid[Tutar],AğuGid[Kategori],GiderÖzeti[Giderler])","v":{"v":0,"d":"0.00"}},{"$f":"SUMIFS(EylGid[Tutar],EylGid[Kategori],GiderÖzeti[Giderler])","v":{"v":0,"d":"0.00"}},{"$f":"SUMIFS(EkiGid[Tutar],EkiGid[Kategori],GiderÖzeti[Giderler])","v":{"v":0,"d":"0.00"}},{"$f":"SUMIFS(KasGid[Tutar],KasGid[Kategori],GiderÖzeti[Giderler])","v":{"v":0,"d":"0.00"}},{"$f":"SUMIFS(AraGid[Tutar],AraGid[Kategori],GiderÖzeti[Giderler])","v":{"v":201,"d":"201.00"}},{"$f":"SUM(GiderÖzeti[[#This Row],[Oca]:[Ara]])","v":{"v":1263,"d":"1,263.00"}}]
["Gider 2",{"$f":"SUMIFS(OcaGid[Tutar],OcaGid[Kategori],GiderÖzeti[Giderler])","v":{"v":238,"d":"238.00"}},{"$f":"SUMIFS(ŞuGid[Tutar],ŞuGid[Kategori],GiderÖzeti[Giderler])","v":{"v":238,"d":"238.00"}},{"$f":"SUMIFS(MarGid[Tutar],MarGid[Kategori],GiderÖzeti[Giderler])","v":{"v":238,"d":"238.00"}},{"$f":"SUMIFS(NisGid[Tutar],NisGid[Kategori],GiderÖzeti[Giderler])","v":{"v":123,"d":"123.00"}},{"$f":"SUMIFS(MayGid[Tutar],MayGid[Kategori],GiderÖzeti[Giderler])","v":{"v":111,"d":"111.00"}},{"$f":"SUMIFS(HazGid[Tutar],HazGid[Kategori],GiderÖzeti[Giderler])","v":{"v":98,"d":"98.00"}},{"$f":"SUMIFS(TemGid[Tutar],TemGid[Kategori],GiderÖzeti[Giderler])","v":{"v":0,"d":"0.00"}},{"$f":"SUMIFS(AğuGid[Tutar],AğuGid[Kategori],GiderÖzeti[Giderler])","v":{"v":0,"d":"0.00"}},{"$f":"SUMIFS(EylGid[Tutar],EylGid[Kategori],GiderÖzeti[Giderler])","v":{"v":0,"d":"0.00"}},{"$f":"SUMIFS(EkiGid[Tutar],EkiGid[Kategori],GiderÖzeti[Giderler])","v":{"v":0,"d":"0.00"}},{"$f":"SUMIFS(KasGid[Tutar],KasGid[Kategori],GiderÖzeti[Giderler])","v":{"v":0,"d":"0.00"}},{"$f":"SUMIFS(AraGid[Tutar],AraGid[Kategori],GiderÖzeti[Giderler])","v":{"v":440,"d":"440.00"}},{"$f":"SUM(GiderÖzeti[[#This Row],[Oca]:[Ara]])","v":{"v":1486,"d":"1,486.00"}}]
["Gider 3",{"$f":"SUMIFS(OcaGid[Tutar],OcaGid[Kategori],GiderÖzeti[Giderler])","v":{"v":110,"d":"110.00"}},{"$f":"SUMIFS(ŞuGid[Tutar],ŞuGid[Kategori],GiderÖzeti[Giderler])","v":{"v":110,"d":"110.00"}},{"$f":"SUMIFS(MarGid[Tutar],MarGid[Kategori],GiderÖzeti[Giderler])","v":{"v":110,"d":"110.00"}},{"$f":"SUMIFS(NisGid[Tutar],NisGid[Kategori],GiderÖzeti[Giderler])","v":{"v":125,"d":"125.00"}},{"$f":"SUMIFS(MayGid[Tutar],MayGid[Kategori],GiderÖzeti[Giderler])","v":{"v":333,"d":"333.00"}},{"$f":"SUMIFS(HazGid[Tutar],HazGid[Kategori],GiderÖzeti[Giderler])","v":{"v":122,"d":"122.00"}},{"$f":"SUMIFS(TemGid[Tutar],TemGid[Kategori],GiderÖzeti[Giderler])","v":{"v":0,"d":"0.00"}},{"$f":"SUMIFS(AğuGid[Tutar],AğuGid[Kategori],GiderÖzeti[Giderler])","v":{"v":0,"d":"0.00"}},{"$f":"SUMIFS(EylGid[Tutar],EylGid[Kategori],GiderÖzeti[Giderler])","v":{"v":0,"d":"0.00"}},{"$f":"SUMIFS(EkiGid[Tutar],EkiGid[Kategori],GiderÖzeti[Giderler])","v":{"v":0,"d":"0.00"}},{"$f":"SUMIFS(KasGid[Tutar],KasGid[Kategori],GiderÖzeti[Giderler])","v":{"v":0,"d":"0.00"}},{"$f":"SUMIFS(AraGid[Tutar],AraGid[Kategori],GiderÖzeti[Giderler])","v":{"v":122,"d":"122.00"}},{"$f":"SUM(GiderÖzeti[[#This Row],[Oca]:[Ara]])","v":{"v":1032,"d":"1,032.00"}}]
["Gider 4",{"$f":"SUMIFS(OcaGid[Tutar],OcaGid[Kategori],GiderÖzeti[Giderler])","v":{"v":426,"d":"426.00"}},{"$f":"SUMIFS(ŞuGid[Tutar],ŞuGid[Kategori],GiderÖzeti[Giderler])","v":{"v":84,"d":"84.00"}},{"$f":"SUMIFS(MarGid[Tutar],MarGid[Kategori],GiderÖzeti[Giderler])","v":{"v":84,"d":"84.00"}},{"$f":"SUMIFS(NisGid[Tutar],NisGid[Kategori],GiderÖzeti[Giderler])","v":{"v":426,"d":"426.00"}},{"$f":"SUMIFS(MayGid[Tutar],MayGid[Kategori],GiderÖzeti[Giderler])","v":{"v":125,"d":"125.00"}},{"$f":"SUMIFS(HazGid[Tutar],HazGid[Kategori],GiderÖzeti[Giderler])","v":{"v":187,"d":"187.00"}},{"$f":"SUMIFS(TemGid[Tutar],TemGid[Kategori],GiderÖzeti[Giderler])","v":{"v":0,"d":"0.00"}},{"$f":"SUMIFS(AğuGid[Tutar],AğuGid[Kategori],GiderÖzeti[Giderler])","v":{"v":0,"d":"0.00"}},{"$f":"SUMIFS(EylGid[Tutar],EylGid[Kategori],GiderÖzeti[Giderler])","v":{"v":0,"d":"0.00"}},{"$f":"SUMIFS(EkiGid[Tutar],EkiGid[Kategori],GiderÖzeti[Giderler])","v":{"v":0,"d":"0.00"}},{"$f":"SUMIFS(KasGid[Tutar],KasGid[Kategori],GiderÖzeti[Giderler])","v":{"v":0,"d":"0.00"}},{"$f":"SUMIFS(AraGid[Tutar],AraGid[Kategori],GiderÖzeti[Giderler])","v":{"v":187,"d":"187.00"}},{"$f":"SUM(GiderÖzeti[[#This Row],[Oca]:[Ara]])","v":{"v":1519,"d":"1,519.00"}}]
["Gider 5",{"$f":"SUMIFS(OcaGid[Tutar],OcaGid[Kategori],GiderÖzeti[Giderler])","v":{"v":54,"d":"54.00"}},{"$f":"SUMIFS(ŞuGid[Tutar],ŞuGid[Kategori],GiderÖzeti[Giderler])","v":{"v":54,"d":"54.00"}},{"$f":"SUMIFS(MarGid[Tutar],MarGid[Kategori],GiderÖzeti[Giderler])","v":{"v":109,"d":"109.00"}},{"$f":"SUMIFS(NisGid[Tutar],NisGid[Kategori],GiderÖzeti[Giderler])","v":{"v":98,"d":"98.00"}},{"$f":"SUMIFS(MayGid[Tutar],MayGid[Kategori],GiderÖzeti[Giderler])","v":{"v":33,"d":"33.00"}},{"$f":"SUMIFS(HazGid[Tutar],HazGid[Kategori],GiderÖzeti[Giderler])","v":{"v":441,"d":"441.00"}},{"$f":"SUMIFS(TemGid[Tutar],TemGid[Kategori],GiderÖzeti[Giderler])","v":{"v":0,"d":"0.00"}},{"$f":"SUMIFS(AğuGid[Tutar],AğuGid[Kategori],GiderÖzeti[Giderler])","v":{"v":0,"d":"0.00"}},{"$f":"SUMIFS(EylGid[Tutar],EylGid[Kategori],GiderÖzeti[Giderler])","v":{"v":0,"d":"0.00"}},{"$f":"SUMIFS(EkiGid[Tutar],EkiGid[Kategori],GiderÖzeti[Giderler])","v":{"v":0,"d":"0.00"}},{"$f":"SUMIFS(KasGid[Tutar],KasGid[Kategori],GiderÖzeti[Giderler])","v":{"v":0,"d":"0.00"}},{"$f":"SUMIFS(AraGid[Tutar],AraGid[Kategori],GiderÖzeti[Giderler])","v":{"v":99,"d":"99.00"}},{"$f":"SUM(GiderÖzeti[[#This Row],[Oca]:[Ara]])","v":{"v":888,"d":"888.00"}}]
["Toplam",{"$f":"SUBTOTAL(109,GiderÖzeti[Oca])","v":{"v":861,"d":"861.00"}},{"$f":"SUBTOTAL(109,GiderÖzeti[Şub])","v":{"v":861,"d":"861.00"}},{"$f":"SUBTOTAL(109,GiderÖzeti[Mar])","v":{"v":574,"d":"574.00"}},{"$f":"SUBTOTAL(109,GiderÖzeti[Nis])","v":{"v":817,"d":"817.00"}},{"$f":"SUBTOTAL(109,GiderÖzeti[May])","v":{"v":977,"d":"977.00"}},{"$f":"SUBTOTAL(109,GiderÖzeti[Haz])","v":{"v":1049,"d":"1,049.00"}},{"$f":"SUBTOTAL(109,GiderÖzeti[Tem])","v":{"v":0,"d":"0.00"}},{"$f":"SUBTOTAL(109,GiderÖzeti[Ağu])","v":{"v":0,"d":"0.00"}},{"$f":"SUBTOTAL(109,GiderÖzeti[Eyl])","v":{"v":0,"d":"0.00"}},{"$f":"SUBTOTAL(109,GiderÖzeti[Eki])","v":{"v":0,"d":"0.00"}},{"$f":"SUBTOTAL(109,GiderÖzeti[Kas])","v":{"v":0,"d":"0.00"}},{"$f":"SUBTOTAL(109,GiderÖzeti[Ara])","v":{"v":1049,"d":"1,049.00"}},{"$f":"SUBTOTAL(109,GiderÖzeti[Toplam])","v":{"v":6188,"d":"6,188.00"}}]

{"sheet":"oca","index":2,"n_rows":9,"n_cols":5,"rows_kept":9,"merged":[[0,0,0,2]]}
["OCAK GİDERLERİ",null,null,"Özet","İpuçları"]
["Tarih","Satınalma Siparişi Numarası","Tutar","Kategori","Açıklama"]
[{"$f":"DATE(YEAR(TODAY()),1,4)","v":"2017-01-04"},"A-12345",{"v":33,"d":"33.00"},"Gider 1","Malzemeler"]
[{"$f":"DATE(YEAR(TODAY()),1,5)","v":"2017-01-05"},"A-12346",{"v":238,"d":"238.00"},"Gider 2"]
[null,null,{"v":342,"d":"342.00"},"Gider 4"]
[null,null,{"v":110,"d":"110.00"},"Gider 3"]
[null,null,{"v":84,"d":"84.00"},"Gider 4"]
[null,null,{"v":54,"d":"54.00"},"Gider 5"]
["Toplam",null,{"$f":"SUBTOTAL(109,OcaGid[Tutar])","v":{"v":861,"d":"861.00"}}]

{"sheet":"şub","index":3,"n_rows":9,"n_cols":5,"rows_kept":9,"merged":[[0,0,0,2]]}
["ŞUBAT GİDERLERİ",null,null,"Özet","İpuçları"]
["Tarih","Satınalma Siparişi Numarası","Tutar","Kategori","Açıklama"]
[{"$f":"DATE(YEAR(TODAY()),2,3)","v":"2017-02-03"},"A-12345",{"v":33,"d":"33.00"},"Gider 1","Malzemeler"]
[{"$f":"DATE(YEAR(TODAY()),2,4)","v":"2017-02-04"},"A-12346",{"v":238,"d":"238.00"},"Gider 2"]
[null,null,{"v":342,"d":"342.00"},"Gider 1"]
[null,null,{"v":110,"d":"110.00"},"Gider 3"]
[null,null,{"v":84,"d":"84.00"},"Gider 4"]
[null,null,{"v":54,"d":"54.00"},"Gider 5"]
["Toplam",null,{"$f":"SUBTOTAL(109,ŞuGid[Tutar])","v":{"v":861,"d":"861.00"}}]

{"sheet":"mar","index":4,"n_rows":9,"n_cols":5,"rows_kept":9,"merged":[[0,0,0,2]]}
["MART GİDERLERİ",null,null,"Özet","İpuçları"]
["Tarih","Satınalma Siparişi Numarası","Tutar","Kategori","Açıklama"]
[{"$f":"DATE(YEAR(TODAY()),3,5)","v":"2017-03-05"},"A-12345",{"v":33,"d":"33.00"},"Gider 1","Malzemeler"]
[{"$f":"DATE(YEAR(TODAY()),3,6)","v":"2017-03-06"},"A-12346",{"v":238,"d":"238.00"},"Gider 2"]
[null,null,{"v":55,"d":"55.00"},"Gider 5"]
[null,null,{"v":110,"d":"110.00"},"Gider 3"]
[null,null,{"v":84,"d":"84.00"},"Gider 4"]
[null,null,{"v":54,"d":"54.00"},"Gider 5"]
["Toplam",null,{"$f":"SUBTOTAL(109,MarGid[Tutar])","v":{"v":574,"d":"574.00"}}]

{"sheet":"nis","index":5,"n_rows":9,"n_cols":5,"rows_kept":9,"merged":[[0,0,0,2]]}
["NİSAN GİDERLERİ",null,null,"Özet","İpuçları"]
["Tarih","Satınalma Siparişi Numarası","Tutar","Kategori","Açıklama"]
[{"$f":"DATE(YEAR(TODAY()),4,4)","v":"2017-04-04"},"A-12345",{"v":45,"d":"45.00"},"Gider 1","Malzemeler"]
[{"$f":"DATE(YEAR(TODAY()),4,8)","v":"2017-04-08"},"A-12346",{"v":123,"d":"123.00"},"Gider 2"]
[null,null,{"v":342,"d":"342.00"},"Gider 4"]
[null,null,{"v":125,"d":"125.00"},"Gider 3"]
[null,null,{"v":84,"d":"84.00"},"Gider 4"]
[null,null,{"v":98,"d":"98.00"},"Gider 5"]
["Toplam",null,{"$f":"SUBTOTAL(109,NisGid[Tutar])","v":{"v":817,"d":"817.00"}}]

{"sheet":"may","index":6,"n_rows":9,"n_cols":5,"rows_kept":9,"merged":[[0,0,0,2]]}
["MAYIS GİDERLERİ",null,null,"Özet","İpuçları"]
["Tarih","Satınalma Siparişi Numarası","Tutar","Kategori","Açıklama"]
[{"$f":"DATE(YEAR(TODAY()),5,3)","v":"2017-05-03"},"A-12345",{"v":33,"d":"33.00"},"Gider 1","Malzemeler"]
[{"$f":"DATE(YEAR(TODAY()),5,8)","v":"2017-05-08"},"A-12346",{"v":111,"d":"111.00"},"Gider 2"]
[null,null,{"v":342,"d":"342.00"},"Gider 1"]
[null,null,{"v":333,"d":"333.00"},"Gider 3"]
[null,null,{"v":125,"d":"125.00"},"Gider 4"]
[null,null,{"v":33,"d":"33.00"},"Gider 5"]
["Toplam",null,{"$f":"SUBTOTAL(109,MayGid[Tutar])","v":{"v":977,"d":"977.00"}}]

{"sheet":"haz","index":7,"n_rows":9,"n_cols":5,"rows_kept":9,"merged":[[0,0,0,2]]}
["HAZİRAN GİDERLERİ",null,null,"Özet","İpuçları"]
["Tarih","Satınalma Siparişi Numarası","Tutar","Kategori","Açıklama"]
[{"$f":"DATE(YEAR(TODAY()),6,7)","v":"2017-06-07"},"A-12345",{"v":201,"d":"201.00"},"Gider 1","Malzemeler"]
[{"$f":"DATE(YEAR(TODAY()),6,8)","v":"2017-06-08"},"A-12346",{"v":98,"d":"98.00"},"Gider 2"]
[null,null,{"v":342,"d":"342.00"},"Gider 5"]
[null,null,{"v":122,"d":"122.00"},"Gider 3"]
[null,null,{"v":187,"d":"187.00"},"Gider 4"]
[null,null,{"v":99,"d":"99.00"},"Gider 5"]
["Toplam",null,{"$f":"SUBTOTAL(109,HazGid[Tutar])","v":{"v":1049,"d":"1,049.00"}}]

{"sheet":"tem","index":8,"n_rows":9,"n_cols":5,"rows_kept":9,"merged":[[0,0,0,2]]}
["TEMMUZ GİDERLERİ",null,null,"Özet","İpuçları"]
["Tarih","Satınalma Siparişi Numarası","Tutar","Kategori","Açıklama"]
[{"$f":"DATE(YEAR(TODAY()),7,9)","v":"2017-07-09"},"A-12345",null,"Gider 1","Malzemeler"]
[{"$f":"DATE(YEAR(TODAY()),7,14)","v":"2017-07-14"},"A-12346",null,"Gider 2"]
[{"$nulls":3},"Gider 2"]
[{"$nulls":3},"Gider 3"]
[{"$nulls":3},"Gider 4"]
[{"$nulls":3},"Gider 5"]
["Toplam",null,{"$f":"SUBTOTAL(109,TemGid[Tutar])","v":{"v":0,"d":"0.00"}}]

{"sheet":"ağu","index":9,"n_rows":9,"n_cols":5,"rows_kept":9,"merged":[[0,0,0,2]]}
["AĞUSTOS GİDERLERİ",null,null,"Özet","İpuçları"]
["Tarih","Satınalma Siparişi Numarası","Tutar","Kategori","Açıklama"]
[{"$f":"DATE(YEAR(TODAY()),8,8)","v":"2017-08-08"},"A-12345",null,"Gider 1","Malzemeler"]
[{"$f":"DATE(YEAR(TODAY()),8,9)","v":"2017-08-09"},"A-12346",null,"Gider 2"]
[{"$nulls":3},"Gider 2"]
[{"$nulls":3},"Gider 3"]
[{"$nulls":3},"Gider 4"]
[{"$nulls":3},"Gider 5"]
["Toplam",null,{"$f":"SUBTOTAL(109,AğuGid[Tutar])","v":{"v":0,"d":"0.00"}}]

{"sheet":"eyl","index":10,"n_rows":9,"n_cols":5,"rows_kept":9,"merged":[[0,0,0,2]]}
["EYLÜL GİDERLERİ",null,null,"Özet","İpuçları"]
["Tarih","Satınalma Siparişi Numarası","Tutar","Kategori","Açıklama"]
[{"$f":"DATE(YEAR(TODAY()),9,9)","v":"2017-09-09"},"A-12345",null,"Gider 1","Malzemeler"]
[{"$f":"DATE(YEAR(TODAY()),9,15)","v":"2017-09-15"},"A-12346",null,"Gider 2"]
[{"$nulls":3},"Gider 2"]
[{"$nulls":3},"Gider 3"]
[{"$nulls":3},"Gider 4"]
[{"$nulls":3},"Gider 5"]
["Toplam",null,{"$f":"SUBTOTAL(109,EylGid[Tutar])","v":{"v":0,"d":"0.00"}}]

{"sheet":"eki","index":11,"n_rows":9,"n_cols":5,"rows_kept":9,"merged":[[0,0,0,2]]}
["EKİM GİDERLERİ",null,null,"Özet","İpuçları"]
["Tarih","Satınalma Siparişi Numarası","Tutar","Kategori","Açıklama"]
[{"$f":"DATE(YEAR(TODAY()),10,10)","v":"2017-10-10"},"A-12345",null,"Gider 1","Malzemeler"]
[{"$f":"DATE(YEAR(TODAY()),10,21)","v":"2017-10-21"},"A-12346",null,"Gider 2"]
[{"$nulls":3},"Gider 2"]
[{"$nulls":3},"Gider 3"]
[{"$nulls":3},"Gider 4"]
[{"$nulls":3},"Gider 5"]
["Toplam",null,{"$f":"SUBTOTAL(109,EkiGid[Tutar])","v":{"v":0,"d":"0.00"}}]

{"sheet":"kas","index":12,"n_rows":9,"n_cols":5,"rows_kept":9,"merged":[[0,0,0,2]]}
["KASIM GİDERLERİ",null,null,"Özet","İpuçları"]
["Tarih","Satınalma Siparişi Numarası","Tutar","Kategori","Açıklama"]
[{"$f":"DATE(YEAR(TODAY()),11,14)","v":"2017-11-14"},"A-12345",null,"Gider 1","Malzemeler"]
[{"$f":"DATE(YEAR(TODAY()),11,21)","v":"2017-11-21"},"A-12346",null,"Gider 2"]
[{"$nulls":3},"Gider 2"]
[{"$nulls":3},"Gider 3"]
[{"$nulls":3},"Gider 4"]
[{"$nulls":3},"Gider 5"]
["Toplam",null,{"$f":"SUBTOTAL(109,KasGid[Tutar])","v":{"v":0,"d":"0.00"}}]

{"sheet":"ara","index":13,"n_rows":9,"n_cols":5,"rows_kept":9,"merged":[[0,0,0,2]]}
["ARALIK GİDERLERİ",null,null,"Özet","İpuçları"]
["Tarih","Satınalma Siparişi Numarası","Tutar","Kategori","Açıklama"]
[{"$f":"DATE(YEAR(TODAY()),12,2)","v":"2017-12-02"},"A-12345",{"v":201,"d":"201.00"},"Gider 1","Malzemeler"]
[{"$f":"DATE(YEAR(TODAY()),12,24)","v":"2017-12-24"},"A-12346",{"v":98,"d":"98.00"},"Gider 2"]
[null,null,{"v":342,"d":"342.00"},"Gider 2"]
[null,null,{"v":122,"d":"122.00"},"Gider 3"]
[null,null,{"v":187,"d":"187.00"},"Gider 4"]
[null,null,{"v":99,"d":"99.00"},"Gider 5"]
["Toplam",null,{"$f":"SUBTOTAL(109,AraGid[Tutar])","v":{"v":1049,"d":"1,049.00"}}]